fUSD/lending_fUSD_20251019
["ID","MTS","AMOUNT","RATE_DAILY","PERIOD"]
[391796772,1760838632244,-1278.84,0.00015848,2]
[391796773,1760838632253,-237.76471167,0.00016087,2]
[391796774,1760838632263,-255.0,0.00016114,2]
[391796776,1760838632273,-1278.84,0.00016394,2]
[391796778,1760838632283,-420.0,0.00016406,2]
[391796780,1760838632292,-253.69112956,0.00016418,2]
[391796782,1760838632301,-250.0,0.00016418,2]
[391796783,1760838632312,-300.0,0.00016484,2]
[391796784,1760838632322,-195.0,0.00016484,2]
[391796785,1760838632333,-2500.0,0.00016484,2]
[391796786,1760838632342,-250.0,0.00016484,2]
[391796787,1760838632353,-666.0,0.00016517,3]
[391796788,1760838632363,-507.97125353,0.00016737,2]
[391796789,1760838632373,-500.0,0.00016737,2]
[391796790,1760838632382,-500.0,0.00016737,2]
[391796791,1760838632392,-500.0,0.00016737,2]
[391796792,1760838632403,-150.0,0.00016737,2]
[391796793,1760838632412,-150.0,0.00016737,2]
[391796794,1760838632422,-150.0,0.00016737,2]
[391796795,1760838632433,-207.13610696,0.00016737,2]
[391796796,1760838632445,-153.67807585,0.00016737,2]
[391796797,1760838632454,-150.0,0.00016737,2]
[391796798,1760838632465,-160.48539216,0.00016737,2]
[391796799,1760838632474,-551.34810869,0.00016792,2]
[391796800,1760838632484,-500.0,0.00016792,2]
[391796801,1760838632496,-150.0,0.00016792,2]
[391796802,1760838632505,-219.39028235,0.00016792,2]
[391796803,1760838632514,-252.77538153,0.00016847,2]
[391796804,1760838632523,-150.0,0.00016847,2]
[391796805,1760838632532,-200.78439277,0.00016901,2]
[391796806,1760838632542,-1278.84,0.00016941,2]
[391796807,1760838632551,-257.73055,0.00017,2]
[391796808,1760838632560,-470.30279588,0.00017072,2]
[391796809,1760838632572,-1022.78250606,0.00017072,2]
[391796810,1760838632583,-3631.7649521,0.00017072,2]
[391796811,1760838632596,-534.009996,0.00017072,2]
[391796812,1760838632607,-385.04999985,0.00017072,2]
[391796813,1760838632618,-2221.25321898,0.00017072,2]
[391796814,1760838632637,-501.16501086,0.00017285,2]
[391796815,1760838632648,-174.60478171,0.00017487,2]
[391796829,1760838637591,-1104.23521829,0.00017487,2]
[391796831,1760838637601,-500.0,0.00017566,2]
[391796833,1760838637610,-163.73623143,0.00017567,2]
[391796834,1760838637620,-500.0,0.00017567,2]
[391796835,1760838637629,-502.01557285,0.00017567,2]
[391796836,1760838637638,-28.77175062,0.00017567,2]
[391796837,1760838637649,-471.85517686,0.00017567,2]
[391796838,1760838637659,-500.0,0.00017567,2]
[391796839,1760838637668,-156.87024108,0.00017567,2]
[391796840,1760838637677,-500.0,0.00017567,2]
[391796841,1760838637686,-605.24685113,0.00017567,2]
[391796842,1760838637696,-500.0,0.00017567,2]
[391796843,1760838637706,-500.40062769,0.00017567,2]
[391796844,1760838637717,-495.03038361,0.00017567,2]
[391796845,1760838637726,-224.15485483,0.00017567,2]
[391796846,1760838637735,-409.50472207,0.00017567,2]
[391796847,1760838637745,-522.7586026,0.00017832,2]
[391796848,1760838637756,-505.55640743,0.00017832,2]
[391796849,1760838637766,-1278.84,0.00018033,2]
[391796850,1760838637776,-152.52166103,0.00018107,2]
[391796851,1760838637786,-1000.75564392,0.00018115,2]
[391796852,1760838637796,-1000.0,0.00018115,2]
[391796853,1760838637806,-505.69057138,0.00018115,2]
[391796854,1760838637815,-153.62863967,0.00018115,2]
[391796855,1760838637826,-16025.7195426,0.00018361,2]
[391796856,1760838637835,-1278.84,0.0001858,2]
[391796857,1760838637849,-250.582248,0.00018613,2]
[391796859,1760838637859,-845.54580128,0.00018663,2]
[391796861,1760838637868,-6049.53571916,0.00018926,2]
[391796863,1760838637878,-1332.47827713,0.00018996,2]
[391796865,1760838637890,-6932.68519174,0.00018996,2]
[391796867,1760838637899,-153.08653616,0.00018999,2]
[391796869,1760838637909,-630.31583747,0.00018999,2]
[391796872,1760838637919,-12478.91243463,0.00019,2]
[391797078,1760838639746,-51155.30576282,0.00019,2]
[391797081,1760838639756,-257.73055,0.00019,2]
[391797084,1760838639766,-344.58058501,0.00019,2]
[391797087,1760838639776,-277.35679052,0.00019026,2]
[391797090,1760838639785,-1000.0,0.00019026,2]
[391797093,1760838639794,-224.997446,0.00019026,2]
[391797096,1760838639803,-250.0,0.00019026,2]
[391797099,1760838639813,-3000.0,0.00019026,2]
[391797102,1760838639822,-1000.0,0.00019026,2]
[391797105,1760838639832,-250.0,0.00019026,2]
[391797108,1760838639841,-3000.0,0.00019026,2]
[391797111,1760838639850,-1000.0,0.00019026,2]
[391797114,1760838639859,-250.0,0.00019026,2]
[391797117,1760838639868,-3000.0,0.00019026,2]
[391797120,1760838639878,-153.00844351,0.00019026,2]
[391797123,1760838639887,-1000.0,0.00019026,2]
[391797126,1760838639896,-3077.39448147,0.00019026,2]
[391797129,1760838639906,-1000.0,0.00019026,2]
[391797132,1760838639915,-250.0,0.00019026,2]
[391797135,1760838639924,-202.13029616,0.00019026,2]
[391797137,1760838639933,-1000.0,0.00019026,2]
[391797138,1760838639943,-250.0,0.00019026,2]
[391797140,1760838639952,-9552.16786547,0.00019026,2]
[391797142,1760838639961,-1000.0,0.00019026,2]
[391797144,1760838639971,-250.0,0.00019026,2]
[391797146,1760838639980,-1000.0,0.00019026,2]
[391797149,1760838639994,-250.0,0.00019026,2]
[391797151,1760838640004,-155.0819825,0.00019026,2]
[391797153,1760838640019,-322.6107,0.00019026,2]
[391797155,1760838640029,-1000.0,0.00019026,2]
[391797156,1760838640039,-260.31917864,0.00019026,2]
[391797159,1760838640049,-1000.0,0.00019026,2]
[391797161,1760838640059,-1000.0,0.00019026,2]
[391797163,1760838640068,-1000.0,0.00019026,2]
[391797164,1760838640078,-1000.0,0.00019026,2]
[391797166,1760838640087,-1024.19363801,0.00019026,2]
[391797168,1760838640097,-704.8632888,0.00019026,2]
[391797170,1760838640106,-1000.0,0.00019026,2]
[391797172,1760838640115,-151.74699082,0.00019026,2]
[391797174,1760838640125,-1000.0,0.00019026,2]
[391797176,1760838640134,-1000.0,0.00019026,2]
[391797178,1760838640145,-1000.0,0.00019026,2]
[391797180,1760838640154,-250.0,0.00019026,2]
[391797182,1760838640164,-1000.0,0.00019026,2]
[391797184,1760838640174,-672.40557102,0.00019026,2]
[391797186,1760838640184,-250.0,0.00019026,2]
[391797188,1760838640193,-1000.0,0.00019026,2]
[391797190,1760838640202,-250.0,0.00019026,2]
[391797193,1760838640213,-1000.0,0.00019026,2]
[391797196,1760838640222,-250.0,0.00019026,2]
[391797198,1760838640232,-1000.0,0.00019026,2]
[391797200,1760838640241,-250.0,0.00019026,2]
[391797202,1760838640251,-1000.0,0.00019026,2]
[391797204,1760838640260,-250.0,0.00019026,2]
[391797206,1760838640269,-153.43622313,0.00019026,2]
[391797208,1760838640279,-890.09192877,0.00019026,2]
[391797209,1760838640288,-250.0,0.00019026,2]
[391797210,1760838640297,-250.0,0.00019026,2]
[391797211,1760838640307,-250.0,0.00019026,2]
[391797212,1760838640316,-250.0,0.00019026,2]
[391797213,1760838640326,-250.0,0.00019026,2]
[391797214,1760838640336,-151.0,0.00019026,2]
[391797215,1760838640345,-1004.75178077,0.00019081,2]
[391797216,1760838640358,-3575.821368,0.00019111,2]
[391797217,1760838640368,-1278.84,0.00019126,2]
[391797218,1760838640378,-11535.74,0.00019473,2]
[391797219,1760838640387,-153.13003482,0.00019574,2]
[391797220,1760838640397,-1278.84,0.00019673,2]
[391797221,1760838640406,-250.0,0.00020089,2]
[391797222,1760838640416,-267.43,0.00020187,2]
[391797223,1760838640426,-1278.84,0.00020219,2]
[391797224,1760838640435,-1757.0,0.000203,2]
[391797225,1760838640445,-291.36074605,0.00020395,2]
[391797226,1760838640455,-330.51596011,0.00020395,2]
[391797228,1760838640464,-926.41,0.00020421,2]
[391797230,1760838640473,-250.0,0.00020421,7]
[391797231,1760838640483,-6049.53571907,0.0002043,2]
[391797232,1760838640493,-1278.84,0.00020766,2]
[391797233,1760838640503,-256.70541774,0.000209,2]
[391797234,1760838640512,-8265.16346887,0.0002092,2]
[391797235,1760838640522,-257.73055,0.00021,2]
[391797236,1760838640532,-500.0,0.00021917,2]
[391797237,1760838640542,-5000.0,0.00021918,2]
[391797238,1760838640554,-6049.53571907,0.00021935,2]
[391797239,1760838640569,-158.0,0.00022274,2]
[391797240,1760838640579,-202.96,0.00022313,2]
[391797241,1760838640589,-1890.97,0.00022335,2]
[391797242,1760838640600,-366.14,0.00022435,2]
[391797243,1760838640610,-1000.0,0.00022514,2]
[391797244,1760838640619,-210.67941175,0.00022776,2]
[391797245,1760838640629,-8265.16346887,0.00022844,2]
[391797246,1760838640639,-166.66,0.00022941,30]
[391797247,1760838640650,-926.41,0.00022973,2]
[391797248,1760838640660,-257.73054,0.00023,2]
[391797249,1760838640670,-180.185964,0.00023177,2]
[391797250,1760838640681,-166.66,0.00023424,30]
[391797251,1760838640691,-6049.53571907,0.00023439,2]
[391797252,1760838640700,-610.0,0.00023575,2]
[391797253,1760838640710,-166.66,0.00023907,30]
[391797254,1760838640720,-1757.58951987,0.00024,2]
[391797255,1760838640730,-1037.66726823,0.00024033,2]
[391797256,1760838640740,-214.23,0.00024054,2]
[391797257,1760838640750,-150.0,0.00024126,2]
[391797258,1760838640764,-4343.65394339,0.00024205,2]
[391797259,1760838640775,-2093.62,0.00024275,2]
[391797260,1760838640784,-506.34,0.00024375,2]
[391797261,1760838640794,-166.66,0.0002439,30]
[391797262,1760838640805,-9856.87,0.000245,2]
[391797263,1760838640815,-200.0,0.00024578,2]
[391797264,1760838640825,-500.0,0.00024579,2]
[391797265,1760838640835,-200.0,0.00024579,2]
[391797266,1760838640845,-1000.0,0.00024658,2]
[391797267,1760838640855,-1412.00502281,0.00024668,2]
[391797268,1760838640865,-210.67941175,0.00024714,2]
[391797269,1760838640875,-151.0,0.00024765,7]
[391797270,1760838640885,-151.778377,0.00024768,7]
[391797271,1760838640896,-199.531107,0.00024768,7]
[391797272,1760838640905,-8265.16346887,0.00024769,2]
[391797273,1760838640915,-1000.0,0.000248,2]
[391797274,1760838640925,-69706.0266817,0.000248,3]
[391797275,1760838640935,-166.66,0.00024873,30]
[391797276,1760838640945,-6049.53571907,0.00024943,2]
[391797277,1760838640957,-9958.00381167,0.0002499,3]
[391797278,1760838640968,-21680.2562477,0.00025,2]
[391797279,1760838640977,-257.73055,0.00025,2]
[391797280,1760838640987,-1091.0,0.00025215,2]
[391797281,1760838640997,-1000.0,0.00025328,2]
[391797282,1760838641008,-166.66,0.00025356,30]
[391797283,1760838641020,-158.078,0.00025526,10]
[391797284,1760838641030,-1444.074,0.00025526,10]
[391797285,1760838641040,-162.41386365,0.00026088,2]
[391797286,1760838641051,-475.74147678,0.00026158,2]
[391797287,1760838641060,-312.93284984,0.000262,2]
[391797288,1760838641070,-199.85193375,0.000262,2]
[391797289,1760838641080,-168.0,0.00026222,2]
[391797290,1760838641092,-500.0,0.00026242,2]
[391797291,1760838641102,-500.0,0.00026242,2]
[391797292,1760838641112,-312.93284984,0.000264,2]
[391797293,1760838641122,-9809.0,0.000264,2]
[391797294,1760838641132,-6049.53571907,0.00026448,2]
[391797295,1760838641142,-2343.0,0.00026476,2]
[391797296,1760838641152,-1091.0,0.00026476,2]
[391797297,1760838641161,-168.0,0.00026623,2]
[391797298,1760838641171,-210.67941175,0.00026651,2]
[391797299,1760838641180,-267.43,0.00026676,2]
[391797300,1760838641189,-154.00462492,0.00026679,7]
[391797301,1760838641199,-9958.00381167,0.00026683,3]
[391797302,1760838641208,-8265.16346887,0.00026693,2]
[391797303,1760838641218,-312.93284984,0.000267,2]
[391797304,1760838641228,-312.93284984,0.00027,2]
[391797305,1760838641237,-5513.0,0.000271,3]
[391797306,1760838641247,-168.0,0.00027118,2]
[391797307,1760838641257,-168.0,0.00027133,2]
[391797308,1760838641266,-312.93284984,0.000272,2]
[391797309,1760838641277,-168.0,0.00027266,2]
[391797310,1760838641286,-1422.98,0.00027397,2]
[391797311,1760838641295,-300.0,0.00027397,2]
[391797312,1760838641305,-1333.68,0.000274,2]
[391797313,1760838641314,-168.0,0.0002744,2]
[391797314,1760838641323,-500.0,0.00027667,5]
[391797315,1760838641333,-501.12251982,0.00027667,5]
[391797316,1760838641342,-9958.00381167,0.0002769,3]
[391797317,1760838641361,-1091.0,0.000278,5]
[391797318,1760838641370,-256.78,0.00027801,2]
[391797319,1760838641380,-168.0,0.00027843,2]
[391797320,1760838641390,-5513.0,0.000279,5]
[391797321,1760838641399,-168.0,0.0002795,7]
[391797322,1760838641409,-6049.53571907,0.00027952,2]
[391797323,1760838641418,-2610.012,0.00027954,2]
[391797324,1760838641428,-197.41430515,0.00027954,2]
[391797325,1760838641560,-409.51204815,0.00027954,2]
[391797326,1760838641574,-1940.0736467,0.00027954,2]
[391797327,1760838641583,-1052.71778676,0.00028,2]
[391797328,1760838641592,-4502.520964,0.00028,60]
[391797329,1760838641601,-9958.00381167,0.0002803,3]
[391797330,1760838641610,-168.0,0.00028035,2]
[391797331,1760838641620,-9288.68743083,0.0002804,2]
[391797332,1760838641630,-168.0,0.00028076,2]
[391797333,1760838641639,-168.0,0.00028108,2]
[391797334,1760838641649,-1000.0,0.00028143,2]
[391797335,1760838641831,-1000.0,0.00028215,5]
[391797336,1760838641841,-168.0,0.00028235,2]
[391797337,1760838641851,-168.0,0.0002824,2]
[391797338,1760838641860,-168.0,0.00028267,2]
[391797339,1760838641870,-9958.00381167,0.0002849,3]
[391797340,1760838641879,-210.67941175,0.00028589,2]
[391797341,1760838641889,-168.0,0.00028595,2]
[391797342,1760838641898,-8265.16346887,0.00028617,2]
[391797343,1760838641907,-168.0,0.00028719,2]
[391797344,1760838641916,-277.38371333,0.00028763,5]
[391797345,1760838641925,-756.0,0.00028844,7]
[391797346,1760838641935,-257.36646399,0.00028899,2]
[391797347,1760838641944,-161.45423209,0.000289,2]
[391797348,1760838641954,-416.7025,0.000289,2]
[391797349,1760838641963,-8855.49922794,0.0002896,3]
[391797350,1760838641975,-40934.51983046,0.0002896,3]
[391797351,1760838641986,-12104.380728,0.0002896,3]
[391797352,1760838641995,-9958.00381167,0.0002897,3]
[391797353,1760838642005,-6052.190364,0.0002897,3]
[391797354,1760838642020,-79664.0304934,0.0002898,3]
[391797355,1760838642030,-33287.047002,0.0002898,3]
[391797356,1760838642039,-9958.00381167,0.00028989,3]
[391797357,1760838642049,-3026.095182,0.00028989,3]
[391797358,1760838642058,-500.0,0.00028989,2]
[391797359,1760838642068,-256.93939087,0.00028989,8]
[391797360,1760838642077,-151.0,0.0002899,30]
[391797361,1760838642088,-75652.37955,0.0002899,3]
[391797362,1760838642098,-163.70051504,0.0002899,2]
[391797363,1760838642108,-151.06,0.0002899,2]
[391797364,1760838642118,-150.0,0.00028999,2]
[391797365,1760838642127,-999.0,0.00028999,120]
[391797366,1760838642138,-500.0,0.00028999,2]
[391797367,1760838642147,-500.0,0.00028999,2]
[391797368,1760838642156,-569.60983076,0.00028999,2]
[391797369,1760838642166,-2000.0,0.00029,2]
[391797370,1760838642176,-2000.0,0.00029,2]
[391797371,1760838642187,-1791.94,0.00029,2]
[391797372,1760838642196,-1048.0,0.00029,30]
[391797373,1760838642205,-136250.86600928,0.00029,2]
[391797374,1760838642217,-64080.38131279,0.00029,2]
[391797375,1760838642227,-327.21,0.00029,2]
[391797376,1760838642239,-8308.96565456,0.00029,2]
[391797391,1760838643013,-152.893441,0.000248,7]
[391797392,1760838643026,-22703.7580801,0.00029,2]
[391797393,1760838643037,-407941.36596792,0.00029,2]
[391797394,1760838643049,-69527.42385401,0.00029,2]
[391797398,1760838645779,-3967.50764572,0.00029,2]
[391797399,1760838645994,-1253.6148895,0.00029,2]
[391797400,1760838646101,-979.64195365,0.00029,2]
[391797409,1760838680155,29.87505017,0.00014851,2]
[391797410,1760838680935,-234.01794983,0.00014851,2]
[391797411,1760838722785,445.79593325,0.00032838,120]
[391797412,1760838946618,242.0,0.00032838,120]
[391797414,1760839804539,261.37,0.00013699,2]
[391797427,1760839831893,-300.0,0.00018555,2]
[391797428,1760839831903,-300.0,0.00018555,2]
[391797429,1760839831913,-195.0,0.00018555,2]
[391797430,1760839831922,-418.44571756,0.00018555,2]
[391797431,1760839831932,-195.0,0.00018555,2]
[391797432,1760839831943,-150.0,0.00018555,2]
[391797433,1760839831952,-152.93917164,0.000199,2]
[391797434,1760839831962,-505.47,0.0002,8]
[391797435,1760839831972,-261.37,0.00020187,2]
[391797436,1760839831981,-1200.0,0.00020409,2]
[391797437,1760839831991,-262.0,0.00020409,2]
[391797438,1760839832002,-300.0,0.00020409,2]
[391797439,1760839832011,-300.0,0.00020409,2]
[391797440,1760839832020,-300.0,0.00020409,2]
[391797441,1760839832030,-1200.0,0.00020409,2]
[391797442,1760839832041,-195.0,0.0002041,2]
[391797443,1760839832051,-250.0,0.0002041,2]
[391797444,1760839832060,-315.60983268,0.0002041,2]
[391797445,1760839832070,-300.0,0.0002041,2]
[391797446,1760839832084,-195.0,0.0002041,2]
[391797447,1760839832093,-195.0,0.0002041,2]
[391797448,1760839832103,-300.0,0.0002041,2]
[391797449,1760839832113,-300.0,0.0002041,2]
[391797450,1760839832123,-1400.397635,0.000211,2]
[391797451,1760839832132,-155.0994958,0.00021207,2]
[391797452,1760839832142,-427.2489769,0.00021207,2]
[391797453,1760839832151,-467.40924853,0.00021207,2]
[391797454,1760839832160,-288.26852904,0.00021207,2]
[391797455,1760839832170,-1000.0,0.000219,2]
[391797456,1760839832179,-306.0,0.00022214,2]
[391797457,1760839832189,-1329.912,0.00022877,7]
[391797458,1760839832199,-250.0,0.00024517,2]
[391797459,1760839832209,-500.0,0.00024932,2]
[391797460,1760839832218,-179.0,0.00025,7]
[391797461,1760839832229,-156.75,0.00025039,2]
[391797462,1760839832239,-500.0,0.00025073,2]
[391797463,1760839832248,-500.0,0.00025073,2]
[391797464,1760839832257,-501.25667567,0.00025073,2]
[391797465,1760839832269,-500.0,0.00025073,2]
[391797466,1760839832278,-501.96323337,0.00025073,2]
[391797467,1760839832288,-500.0,0.00025073,2]
[391797468,1760839832298,-501.11402236,0.00025073,2]
[391797469,1760839832307,-500.0,0.00025073,2]
[391797470,1760839832318,-515.95217868,0.00025073,2]
[391797471,1760839832328,-500.0,0.00025073,2]
[391797472,1760839832337,-500.83540342,0.00025073,2]
[391797473,1760839832347,-1000.0,0.000256,2]
[391797474,1760839832356,-500.0,0.00025621,2]
[391797475,1760839832366,-1000.0,0.00025621,2]
[391797476,1760839832375,-1000.0,0.00025621,2]
[391797477,1760839832385,-604.35294793,0.00025621,2]
[391797478,1760839832394,-500.71394037,0.00025621,2]
[391797479,1760839832404,-421.95,0.00026106,2]
[391797481,1760839832413,-255.37578346,0.00026169,2]
[391797482,1760839832423,-506.65740522,0.00026169,2]
[391797484,1760839832433,-167.78352326,0.000262,2]
[391797486,1760839832442,-326.0,0.000262,2]
[391797487,1760839832455,-475.82771539,0.00026202,2]
[391797488,1760839832464,-1000.0,0.00026226,2]
[391797489,1760839832474,-500.0,0.00026291,2]
[391797490,1760839832483,-228.56619676,0.00026291,2]
[391797491,1760839832495,-500.0,0.00026291,2]
[391797492,1760839832505,-500.0,0.00026291,2]
[391797493,1760839832515,-500.0,0.00026291,2]
[391797494,1760839832525,-1009.1,0.00026292,2]
[391797495,1760839832534,-193.3279338,0.00026292,2]
[391797496,1760839832547,-129.2827662,0.00026292,2]
[391797497,1760839832557,-151.0,0.00026292,2]
[391797498,1760839832567,-151.0,0.00026292,2]
[391797499,1760839832578,-154.16309091,0.00026292,2]
[391797500,1760839832589,-3000.0,0.00026292,2]
[391797501,1760839832599,-151.0,0.00026292,2]
[391797502,1760839832608,-152.48296005,0.00026292,2]
[391797503,1760839832618,-3000.0,0.00026292,2]
[391797504,1760839832628,-151.0,0.00026292,2]
[391797505,1760839832639,-3000.0,0.00026292,2]
[391797506,1760839832648,-151.0,0.00026292,2]
[391797507,1760839832668,-200.0,0.00026292,2]
[391797508,1760839832679,-3000.0,0.00026292,2]
[391797509,1760839832689,-151.0,0.00026292,2]
[391797510,1760839832699,-151.0,0.00026292,2]
[391797511,1760839832708,-151.0,0.00026292,2]
[391797512,1760839832718,-151.0,0.00026292,2]
[391797513,1760839832727,-151.0,0.00026292,2]
[391797514,1760839832738,-151.0,0.00026292,2]
[391797515,1760839832747,-151.0,0.00026292,2]
[391797516,1760839832757,-159.60991893,0.00026292,2]
[391797517,1760839832768,-151.0,0.00026292,2]
[391797518,1760839832778,-151.0,0.00026292,2]
[391797519,1760839832787,-151.0,0.00026292,2]
[391797520,1760839832796,-151.0,0.00026292,2]
[391797521,1760839832806,-151.0,0.00026292,2]
[391797522,1760839832818,-151.0,0.00026292,2]
[391797523,1760839832829,-500.0,0.00026292,2]
[391797524,1760839833035,-151.0,0.00026292,2]
[391797525,1760839833046,-500.0,0.00026292,2]
[391797526,1760839833055,-151.0,0.00026292,2]
[391797527,1760839833065,-500.0,0.00026292,2]
[391797528,1760839833075,-151.0,0.00026292,2]
[391797529,1760839833084,-695.39793187,0.00026292,2]
[391797530,1760839833094,-500.0,0.00026292,2]
[391797531,1760839833103,-151.0,0.00026292,2]
[391797532,1760839833113,-500.0,0.00026292,2]
[391797533,1760839833122,-200.0,0.00026292,2]
[391797534,1760839833132,-151.0,0.00026292,2]
[391797535,1760839833145,-500.0,0.00026292,2]
[391797536,1760839833156,-151.0,0.00026292,2]
[391797537,1760839833166,-500.0,0.00026292,2]
[391797538,1760839833175,-151.0,0.00026292,2]
[391797539,1760839833185,-500.0,0.00026292,2]
[391797540,1760839833194,-151.0,0.00026292,2]
[391797541,1760839833205,-1000.0,0.00026292,2]
[391797542,1760839833214,-500.0,0.00026292,2]
[391797543,1760839833223,-151.0,0.00026292,2]
[391797544,1760839833233,-1000.0,0.00026292,2]
[391797545,1760839833242,-1000.0,0.00026292,2]
[391797546,1760839833252,-500.0,0.00026292,2]
[391797547,1760839833261,-151.0,0.00026292,2]
[391797548,1760839833270,-1000.0,0.00026292,2]
[391797549,1760839833280,-600.0,0.00026292,2]
[391797550,1760839833290,-509.79898667,0.00026292,2]
[391797551,1760839833303,-151.0,0.00026292,2]
[391797552,1760839833322,-1000.0,0.00026292,2]
[391797553,1760839833331,-151.0,0.00026292,2]
[391797554,1760839833342,-1000.0,0.00026292,2]
[391797555,1760839833352,-151.0,0.00026292,2]
[391797556,1760839833362,-1000.0,0.00026292,2]
[391797557,1760839833372,-1000.0,0.00026292,2]
[391797558,1760839833381,-151.0,0.00026292,2]
[391797559,1760839833391,-1000.0,0.00026292,2]
[391797560,1760839833401,-250.0,0.00026292,2]
[391797561,1760839833410,-202.60079784,0.00026292,2]
[391797562,1760839833420,-931.17805787,0.00026292,2]
[391797563,1760839833433,-68.82194213,0.00026292,2]
[391797564,1760839833443,-245.10108981,0.00026292,2]
[391797565,1760839833459,-4.89891019,0.00026292,2]
[391797566,1760839833469,-250.0,0.00026292,2]
[391797567,1760839833478,-504.90410184,0.00026292,2]
[391797568,1760839833498,-495.09589816,0.00026292,2]
[391797569,1760839833507,-258.00028311,0.00026292,2]
[391797570,1760839833519,-741.99971689,0.00026292,2]
[391797571,1760839833528,-250.0,0.00026292,2]
[391797572,1760839833537,-395.20686133,0.00026292,2]
[391797573,1760839833552,-604.79313867,0.00026292,2]
[391797574,1760839833561,-259.21271337,0.00026292,2]
[391797575,1760839833571,-1681.54,0.00026308,2]
[391797576,1760839833580,-150.0,0.00026434,2]
[391797577,1760839833589,-1009.1,0.00026566,2]
[391797578,1760839833598,-291.0,0.000266,5]
[391797579,1760839833607,-261.37,0.00026676,2]
[391797580,1760839833617,-152.0,0.00026678,3]
[391797581,1760839833627,-1009.1,0.0002684,2]
[391797582,1760839833637,-201.49157306,0.0002684,2]
[391797583,1760839833646,-1009.1,0.00027114,2]
[391797584,1760839833655,-837.95727168,0.00027226,2]
[391797585,1760839833665,-266.49079189,0.00027266,2]
[391797586,1760839833674,-1405.512,0.00027309,16]
[391797587,1760839833684,-158.078,0.00027309,16]
[391797588,1760839833694,-156.91,0.00027353,30]
[391797589,1760839833703,-962.14,0.00027382,2]
[391797590,1760839833713,-1009.1,0.00027388,2]
[391797591,1760839833722,-837.95727168,0.00027467,2]
[391797592,1760839833731,-2547.0,0.00027576,2]
[391797593,1760839833741,-152.0,0.00027642,4]
[391797594,1760839833750,-326.86774131,0.00027661,2]
[391797595,1760839833759,-1009.1,0.00027662,7]
[391797596,1760839833769,-837.95727168,0.0002775,2]
[391797597,1760839833778,-153.2712387,0.00027797,2]
[391797598,1760839833787,-153.93615259,0.00027797,2]
[391797599,1760839833796,-150.0,0.00027797,2]
[391797600,1760839833805,-150.0,0.00027797,2]
[391797601,1760839833816,-150.9711764,0.00027797,2]
[391797602,1760839833827,-150.0,0.00027797,2]
[391797603,1760839833836,-500.0,0.00027797,2]
[391797604,1760839833847,-500.0,0.00027797,2]
[391797605,1760839833858,-500.0,0.00027797,2]
[391797606,1760839833868,-500.0,0.00027797,2]
[391797607,1760839833878,-500.0,0.00027797,2]
[391797608,1760839833889,-206.07600823,0.00027797,2]
[391797609,1760839833900,-150.0,0.00027797,2]
[391797610,1760839833910,-150.0,0.00027797,2]
[391797611,1760839833919,-156.05625151,0.00027797,2]
[391797612,1760839833929,-7297.26231822,0.00027814,2]
[391797613,1760839833939,-169.37751562,0.00027852,2]
[391797614,1760839833948,-150.0,0.00027852,2]
[391797615,1760839833959,-157.48190992,0.00027852,2]
[391797616,1760839833969,-154.20288383,0.00027852,2]
[391797617,1760839833978,-203.93364391,0.00027907,2]
[391797618,1760839833987,-1009.1,0.00027936,7]
[391797619,1760839833996,-837.95727168,0.00028056,2]
[391797620,1760839834007,-1002.15380327,0.00028129,2]
[391797621,1760839834017,-1403.25,0.00028241,2]